fUST/lending_fUST_20251004
["ID","MTS","AMOUNT","RATE_DAILY","PERIOD"]
[389085890,1759575294020,868.83569681,0.00020931,2]
[389085891,1759575294362,884.72,0.00020759,2]
[389085892,1759575294957,500.0,0.00020759,2]
[389085893,1759575296369,300.0,0.000207,2]
[389085894,1759575297427,500.0,0.00020767,2]
[389085895,1759575298041,230.2483003,0.00020767,2]
[389085896,1759575299311,500.0,0.00020872,2]
[389085897,1759575301193,231.67763548,0.00020768,2]
[389085898,1759575302345,500.0,0.00020769,2]
[389085899,1759575302608,300.0,0.000208,2]
[389085900,1759575302649,500.0,0.00020768,2]
[389085901,1759575302749,1300.46,0.00020767,2]
[389085902,1759575303967,-300.0,0.00021032,2]
[389085903,1759575303999,-300.0,0.00021032,2]
[389085904,1759575304501,500.0,0.00020759,2]
[389085905,1759575304636,1200.0,0.00021032,2]
[389085906,1759575305115,500.0,0.00020759,2]
[389085907,1759575308367,1777.83,0.00020768,2]
[389085908,1759575309776,500.0,0.00020768,2]
[389085909,1759575310470,1044.26,0.00020767,2]
[389085910,1759575310700,2202.32,0.00020759,2]
[389085911,1759575313127,1075.6,0.00020759,2]
[389085912,1759575313153,621.34,0.00020759,2]
[389085913,1759575314345,684.73,0.00020759,2]
[389085914,1759575314800,500.0,0.00020768,2]
[389085915,1759575314900,1065.32,0.00020767,2]
[389085916,1759575315582,500.0,0.00020769,2]
[389085917,1759575316338,5000.0,0.00021032,2]
[389085918,1759575318748,1628.62,0.00020941,2]
[389085919,1759575318772,10000.01,0.00020941,2]
[389085920,1759575318796,10000.01,0.00020941,2]
[389085921,1759575318819,10000.01,0.00020941,2]
[389085922,1759575318843,10000.01,0.00020941,2]
[389085923,1759575318865,10000.01,0.00020941,2]
[389085924,1759575318887,10000.01,0.00020941,2]
[389085925,1759575318909,10000.01,0.00020941,2]
[389085926,1759575318933,10000.01,0.00020941,2]
[389085927,1759575318957,10000.01,0.00020941,2]
[389085928,1759575318979,10000.01,0.00020941,2]
[389085929,1759575319001,10000.01,0.00020941,2]
[389085930,1759575319024,10000.01,0.00020941,2]
[389085931,1759575319047,10000.01,0.00020941,2]
[389085932,1759575319151,1094.5,0.00020768,2]
[389085933,1759575319718,500.0,0.00020768,2]
[389085934,1759575321452,500.0,0.00020767,2]
[389085935,1759575323504,527.77,0.00020759,2]
[389085936,1759575323868,500.0,0.00020759,2]
[389085937,1759575324333,261.79836741,0.00020931,2]
[389085938,1759575324354,4738.20163259,0.00020931,2]
[389085939,1759575325641,500.0,0.00020768,2]
[389085940,1759575326492,501.87418188,0.00020768,2]
[389085941,1759575327941,1252.87,0.00020759,2]
[389085942,1759575328210,3007.06418553,0.00020767,2]
[389085943,1759575328257,-3421.16581447,0.00020767,2]
[389085944,1759575328396,-500.0,0.00020768,2]
[389085945,1759575329118,-1093.14,0.00020759,2]
[389085946,1759575329965,-5039.05638152,0.00020941,2]
[389085947,1759575334189,-500.0,0.00020759,2]
[389085948,1759575334219,-1890.22,0.00020768,2]
[389085949,1759575334248,-500.0,0.00020769,2]
[389085950,1759575334277,-1976.87,0.0002077,2]
[389085951,1759575334348,-265.83,0.00020769,2]
[389085952,1759575334379,-315.35,0.00020769,2]
[389085953,1759575334406,-265.83,0.0002077,2]
[389085954,1759575334471,-8837.65,0.00020941,2]
[389085955,1759575334505,-10000.01,0.00020941,2]
[389085956,1759575334686,-10000.01,0.00020941,2]
[389085957,1759575335025,-500.0,0.00020759,2]
[389085958,1759575335065,-9500.01,0.00020941,2]
[389085959,1759575335080,-500.0,0.00020941,2]
[389085960,1759575335095,-9000.01,0.00020941,2]
[389085961,1759575335124,-10000.01,0.00020941,2]
[389085962,1759575335226,-10000.01,0.00020941,2]
[389085963,1759575335352,-10000.01,0.00020941,2]
[389085964,1759575335468,-10000.01,0.00020941,2]
[389085965,1759575335586,-10000.01,0.00020941,2]
[389085966,1759575335724,-10000.01,0.00020941,2]
[389085967,1759575335946,-10000.01,0.00020941,2]
[389085968,1759575338189,-562.35,0.00020759,2]
[389085969,1759575338217,-1361.53,0.00020759,2]
[389085970,1759575339671,5000.0,0.00020732,2]
[389085971,1759575344379,-1488.72,0.00020767,2]
[389085972,1759575344426,-3302.27,0.00020767,2]
[389085973,1759575344657,-418.03,0.00020767,2]
[389085974,1759575345073,500.0,0.00020759,2]
[389085975,1759575347326,569.37,0.00020759,2]
[389085976,1759575347576,5000.0,0.00020767,2]
[389085977,1759575347708,500.0,0.00020759,2]
[389085978,1759575348270,-500.0,0.00020768,2]
[389085979,1759575348300,-756.92,0.00020768,2]
[389085980,1759575348399,500.0,0.00020767,2]
[389085981,1759575349548,1015.27,0.00020768,2]
[389085982,1759575350263,-500.0,0.00020769,2]
[389085983,1759575350291,-2531.95,0.00020769,2]
[389085984,1759575352181,500.0,0.00020767,2]
[389085985,1759575352278,-3273.3423554,0.00020921,2]
[389085986,1759575352782,500.0,0.00020759,2]
[389085987,1759575352997,500.0,0.0002077,2]
[389085988,1759575353771,1000.0,0.00020768,2]
[389085992,1759575355626,1453.3252892,0.00020921,2]
[389085993,1759575355649,3546.6747108,0.00020921,2]
[389085994,1759575355677,500.0,0.00020759,2]
[389085995,1759575355961,431.70542886,0.00020768,2]
[389085996,1759575356639,1057.62,0.00020769,2]
[389085997,1759575358079,500.0,0.00020768,2]
[389085998,1759575359554,831.76,0.00020767,2]
[389085999,1759575361294,1332.85,0.00020768,2]
[389086000,1759575361959,300.0,0.000208,2]
[389086001,1759575362053,500.0,0.00020768,2]
[389086002,1759575362470,999.39986034,0.00020767,2]
[389086003,1759575362491,336.40013966,0.00020767,2]
[389086004,1759575362524,500.0,0.00020769,2]
[389086005,1759575363413,500.0,0.00020759,2]
[389086006,1759575363573,5000.0,0.00020921,2]
[389086007,1759575363876,1404.75,0.00020759,2]
[389086008,1759575369860,500.0,0.00020768,2]
[389086009,1759575370506,1403.34,0.00020759,2]
[389086010,1759575371858,355.51986034,0.00020921,2]
[389086011,1759575371879,4644.48013966,0.00020921,2]
[389086012,1759575372303,500.0,0.00020769,2]
[389086013,1759575374306,500.0,0.00020759,2]
[389086014,1759575377100,500.0,0.00020759,2]
[389086015,1759575377440,300.31075032,0.00020769,2]
[389086016,1759575378237,500.0,0.00020769,2]
[389086017,1759575379164,500.0,0.00020769,2]
[389086018,1759575379825,2555.21911002,0.00020921,2]
[389086019,1759575379846,1296.79088998,0.00020921,2]
[389086020,1759575380922,3881.27,0.00020767,2]
[389086021,1759575382221,500.0,0.00020759,2]
[389086022,1759575383813,500.0,0.00020759,2]
[389086023,1759575384155,500.0,0.00020759,2]
[389086024,1759575385355,738.91,0.00020769,2]
[389086025,1759575386028,631.79,0.00020759,2]
[389086026,1759575387186,906.21,0.00020759,2]
[389086027,1759575387909,1045.03911002,0.00020921,2]
[389086028,1759575387931,3954.96088998,0.00020921,2]
[389086029,1759575388266,3105.94,0.00020759,2]
[389086030,1759575390739,1033.49,0.00020767,2]
[389086031,1759575392843,500.0,0.00020768,2]
[389086032,1759575394105,500.0,0.00020769,2]
[389086033,1759575395699,3863.37054996,0.00020921,2]
[389086034,1759575396271,500.0,0.00020759,2]
[389086035,1759575412173,-3535.24497136,0.00019866,2]
[389086040,1759575453130,-453.63126132,0.00019567,2]
[389086041,1759575454591,-276.9921209,0.00019567,2]
[389086042,1759575456188,-178.35952112,0.00019567,2]
[389086043,1759575458246,-187.42973043,0.00019567,2]
[389086044,1759575462143,-275.2707443,0.00019567,2]
[389086045,1759575466122,-206.61339169,0.00019567,2]
[389086046,1759575469995,-590.509024,0.00019567,2]
[389086047,1759575471559,-241.63803325,0.00019567,2]
[389086048,1759575474891,-255.01229992,0.00019567,2]
[389086049,1759575477617,-322.05356562,0.00019567,2]
[389086054,1759575665247,156.254511,0.00024736,30]
[389086056,1759575793748,2016.02745852,0.00028767,120]
[389086057,1759575802949,10000.01,0.00018,2]
[389086058,1759575802972,10000.01,0.00018,2]
[389086059,1759575802995,10000.01,0.00018,2]
[389086060,1759575803016,10000.01,0.00018,2]
[389086061,1759575803039,10000.01,0.00018,2]
[389086062,1759575803063,10000.01,0.00018,2]
[389086063,1759575803086,6462.93152933,0.00018,2]
[389086064,1759575804044,3537.07847067,0.00018033,2]
[389086065,1759575804068,675.16204535,0.00018033,2]
[389086075,1759575917688,1008.51482557,0.00018033,2]
[389086082,1759575990524,5000.0,0.00018033,2]
[389086083,1759576013267,3316.33312908,0.00018033,2]
[389086084,1759576013288,1683.66687092,0.00018033,2]
[389086101,1759576037391,5000.0,0.00018033,2]
[389086130,1759576059734,3316.34312908,0.00018033,2]
[389086131,1759576059756,1683.65687092,0.00018033,2]
[389086134,1759576079663,179.55,0.00015984,2]
[389086135,1759576079951,179.53,0.00015984,2]
[389086136,1759576082381,5000.0,0.00018033,2]
[389086137,1759576104994,2957.27312908,0.00018033,2]
[389086138,1759576105019,2042.72687092,0.00018033,2]
[389086139,1759576127522,5000.0,0.00018033,2]
[389086140,1759576151079,2957.28312908,0.00018033,2]
[389086141,1759576151103,2042.71687092,0.00018033,2]
[389086142,1759576173572,5000.0,0.00018033,2]
[389086143,1759576195950,2957.29312908,0.00018033,2]
[389086144,1759576195973,2042.70687092,0.00018033,2]
[389086146,1759576218864,5000.0,0.00018033,2]
[389086176,1759576231716,-1200.0,0.00018099,2]
[389086177,1759576231727,-21.25,0.00018099,2]
[389086178,1759576231738,-978.75,0.00018099,2]
[389086179,1759576231747,-185.08314713,0.00018099,2]
[389086183,1759576231780,-314.91685287,0.00018099,2]
[389086185,1759576231791,-483.71040084,0.00018099,2]
[389086191,1759576237619,-538.28393778,0.00018099,2]
[389086192,1759576237630,-1100.41937275,0.000181,5]
[389086193,1759576237640,-300.0,0.00018228,2]
[389086194,1759576237649,-300.0,0.00018228,2]
[389086195,1759576237662,-300.0,0.00018228,2]
[389086196,1759576237672,-300.0,0.00018228,2]
[389086197,1759576237681,-1200.0,0.00018786,2]
[389086198,1759576237692,-5000.0,0.00019178,2]
[389086199,1759576237702,-338.21164185,0.00019215,2]
[389086200,1759576237714,-196.46835815,0.00019215,2]
[389086201,1759576237723,-500.0,0.00019215,2]
[389086202,1759576237733,-1360.56,0.00019215,2]
[389086203,1759576237742,-1269.82,0.00019215,2]
[389086204,1759576237753,-746.58,0.00019215,2]
[389086205,1759576237763,-616.30732628,0.00019215,2]
[389086206,1759576237772,-482.1013782,0.00019215,2]
[389086207,1759576237782,-500.0,0.00019215,2]
[389086208,1759576237791,-500.0,0.00019215,2]
[389086209,1759576237801,-500.0,0.00019215,2]
[389086210,1759576237810,-5566.94,0.00019215,2]
[389086211,1759576237821,-4367.38,0.00019215,2]
[389086212,1759576237830,-1574.36,0.00019215,2]
[389086213,1759576237840,-500.0,0.00019215,2]
[389086214,1759576237850,-500.0,0.00019215,2]
[389086216,1759576237861,-590.18,0.00019215,2]
[389086218,1759576237871,-500.0,0.00019215,2]
[389086220,1759576237880,-500.0,0.00019215,2]
[389086222,1759576237890,-500.0,0.00019215,2]
[389086224,1759576237900,-500.0,0.00019215,2]
[389086226,1759576237909,-227.18732785,0.00019215,2]
[389086228,1759576237918,-520.37536762,0.00019215,2]
[389086229,1759576237927,-500.0,0.00019215,2]
[389086230,1759576237936,-212.29642424,0.00019215,2]
[389086231,1759576237945,-500.0,0.00019215,2]
[389086232,1759576237954,-500.0,0.00019215,2]
[389086233,1759576237963,-21948.45145483,0.00019216,2]
[389086234,1759576237972,-30039.8341326,0.00019216,2]
[389086235,1759576237982,-211.7729075,0.00019488,2]
[389086236,1759576237991,-534.68,0.00019489,2]
[389086237,1759576238000,-500.0,0.00019489,2]
[389086238,1759576238009,-1360.56,0.00019489,2]
[389086239,1759576238018,-1269.82,0.00019489,2]
[389086240,1759576238027,-746.58,0.00019489,2]
[389086241,1759576238036,-500.0,0.00019489,2]
[389086242,1759576238045,-500.0,0.00019489,2]
[389086243,1759576238054,-5566.94,0.00019489,2]
[389086244,1759576238063,-4367.38,0.00019489,2]
[389086245,1759576238073,-1574.36,0.00019489,2]
[389086246,1759576238082,-500.0,0.00019489,2]
[389086248,1759576238091,-500.0,0.00019489,2]
[389086250,1759576238100,-590.18,0.00019489,2]
[389086252,1759576238110,-500.0,0.00019489,2]
[389086254,1759576238119,-500.0,0.00019489,2]
[389086256,1759576238128,-500.0,0.00019489,2]
[389086258,1759576238138,-151.0,0.00019554,2]
[389086260,1759576238147,-151.0,0.00019554,2]
[389086262,1759576238156,-151.0,0.00019554,2]
[389086264,1759576238165,-151.0,0.00019554,2]
[389086266,1759576238175,-151.0,0.00019554,2]
[389086268,1759576238184,-151.0,0.00019554,2]
[389086270,1759576238193,-151.0,0.00019554,2]
[389086272,1759576238203,-151.0,0.00019554,2]
[389086274,1759576238212,-151.0,0.00019554,2]
[389086276,1759576238222,-151.0,0.00019554,2]
[389086278,1759576238231,-151.0,0.00019554,2]
[389086280,1759576238240,-151.0,0.00019554,2]
[389086282,1759576238249,-151.0,0.00019554,2]
[389086285,1759576238259,-151.0,0.00019554,2]
[389086287,1759576238269,-500.0,0.00019566,2]
[389086289,1759576238279,-500.0,0.00019566,2]
[389086291,1759576238288,-500.0,0.00019566,2]
[389086292,1759576238297,-500.0,0.00019566,2]
[389086294,1759576238307,-500.0,0.00019566,2]
[389086296,1759576238317,-500.0,0.00019566,2]
[389086298,1759576238326,-500.0,0.00019566,2]
[389086300,1759576238337,-584.18,0.00019566,2]
[389086303,1759576238347,-1838.1,0.00019566,2]
[389086305,1759576238356,-585.03,0.00019566,2]
[389086306,1759576238366,-955.37,0.00019566,2]
[389086308,1759576238375,-500.0,0.00019566,2]
[389086310,1759576238385,-500.0,0.00019566,2]
[389086312,1759576238395,-2288.71,0.00019566,2]
[389086314,1759576238405,-1781.48,0.00019566,2]
[389086316,1759576238414,-1130.4,0.00019566,2]
[389086318,1759576238423,-1467.11,0.00019566,2]
[389086320,1759576238433,-1260.12,0.00019566,2]
[389086322,1759576238442,-500.0,0.00019566,2]
[389086324,1759576238451,-500.0,0.00019566,2]
[389086326,1759576238460,-545.08,0.00019566,2]
[389086328,1759576238469,-1436.03,0.00019566,2]
[389086330,1759576238479,-500.0,0.00019566,2]
[389086332,1759576238488,-444.75189287,0.00019566,2]
[389086334,1759576238497,-500.0,0.00019566,2]
[389086336,1759576238507,-500.0,0.00019566,2]
[389086338,1759576238516,-500.0,0.00019566,2]
[389086340,1759576238525,-3224.55,0.00019566,2]
[389086343,1759576238539,-500.0,0.00019566,2]
[389086345,1759576238549,-646.0,0.00019566,2]
[389086347,1759576238559,-1025.35,0.00019566,2]
[389086349,1759576238569,-306.84153993,0.00019566,2]
[389086351,1759576238579,-1766.34,0.00019566,2]
[389086353,1759576238588,-1473.85,0.00019566,2]
[389086355,1759576238598,-1767.5,0.00019566,2]
[389086357,1759576238607,-2991.97,0.00019566,2]
[389086359,1759576238617,-1063.98,0.00019566,2]
[389086361,1759576238627,-500.0,0.00019566,2]
[389086363,1759576238636,-500.0,0.00019566,2]
[389086366,1759576238646,-2963.17,0.00019566,2]
[389086368,1759576238658,-634.81,0.00019566,2]
[389086370,1759576238669,-500.0,0.00019566,2]
[389086372,1759576238678,-481.87974871,0.00019566,2]
[389086374,1759576238688,-500.0,0.00019566,2]
[389086376,1759576238699,-1001.13,0.00019566,2]
[389086378,1759576238708,-4955.47618844,0.00019567,2]
[389086379,1759576238719,-500.0,0.00019567,2]
[389086381,1759576238729,-500.0,0.0001966,2]
[389086383,1759576238743,-500.0,0.0001966,2]
[389086385,1759576238753,-500.0,0.0001966,2]
[389086387,1759576238763,-640.58795883,0.0001966,2]
[389086389,1759576238773,-501.29388359,0.0001966,2]
[389086391,1759576238783,-500.0,0.0001966,2]
[389086393,1759576238793,-500.0,0.0001966,2]
[389086395,1759576238802,-500.0,0.0001966,2]
[389086397,1759576238812,-500.0,0.0001966,2]
[389086399,1759576238822,-534.68,0.00019763,2]
[389086401,1759576238831,-500.0,0.00019763,2]
[389086403,1759576238841,-1360.56,0.00019763,2]
[389086405,1759576238851,-1269.82,0.00019763,2]
[389086407,1759576238860,-746.58,0.00019763,2]
[389086409,1759576238870,-500.0,0.00019763,2]
[389086411,1759576238880,-500.0,0.00019763,2]
[389086413,1759576238889,-5566.94,0.00019763,2]
[389086415,1759576238898,-4367.38,0.00019763,2]
[389086417,1759576238908,-1574.36,0.00019763,2]
[389086419,1759576238917,-500.0,0.00019763,2]
[389086421,1759576238927,-500.0,0.00019763,2]
[389086423,1759576238936,-590.18,0.00019763,2]
[389086425,1759576238946,-500.0,0.00019763,2]
[389086427,1759576238955,-500.0,0.00019763,2]
[389086429,1759576238964,-550.31418726,0.00019763,2]
[389086431,1759576238973,-500.0,0.0001984,2]
[389086433,1759576238982,-500.0,0.0001984,2]
[389086435,1759576238991,-584.18,0.0001984,2]
[389086437,1759576239001,-1838.1,0.0001984,2]
[389086439,1759576239011,-585.03,0.0001984,2]
[389086441,1759576239020,-955.37,0.0001984,2]
[389086443,1759576239031,-500.0,0.0001984,2]
[389086445,1759576239040,-500.0,0.0001984,2]
[389086447,1759576239049,-2288.71,0.0001984,2]
[389086449,1759576239059,-1781.48,0.0001984,2]
[389086451,1759576239069,-1130.4,0.0001984,2]
[389086452,1759576239078,-1467.11,0.0001984,2]
[389086454,1759576239088,-1260.12,0.0001984,2]
[389086456,1759576239097,-500.0,0.0001984,2]
[389086459,1759576239108,-500.0,0.0001984,2]
[389086461,1759576239117,-545.08,0.0001984,2]
[389086462,1759576239127,-1436.03,0.0001984,2]
[389086465,1759576239136,-345.71553071,0.0001984,2]
[389086467,1759576239146,-500.0,0.0001984,2]
[389086469,1759576239155,-500.0,0.0001984,2]
[389086471,1759576239164,-500.0,0.0001984,2]
[389086473,1759576239178,-3224.55,0.0001984,2]
[389086475,1759576239189,-500.0,0.0001984,2]
[389086477,1759576239198,-646.0,0.0001984,2]
[389086479,1759576239207,-1025.35,0.0001984,2]
[389086481,1759576239216,-1766.34,0.0001984,2]
[389086483,1759576239225,-1473.85,0.0001984,2]
[389086485,1759576239234,-1767.5,0.0001984,2]
[389086487,1759576239244,-2991.97,0.0001984,2]
[389086488,1759576239255,-1063.98,0.0001984,2]
[389086491,1759576239264,-500.0,0.0001984,2]
[389086492,1759576239274,-500.0,0.0001984,2]
[389086495,1759576239284,-2963.17,0.0001984,2]
[389086497,1759576239293,-634.81,0.0001984,2]
[389086499,1759576239303,-156.34048286,0.0001984,2]
[389086501,1759576239312,-500.0,0.0001984,2]
[389086503,1759576239322,-1001.13,0.0001984,2]
[389086505,1759576239332,-500.0,0.00019841,2]
[389086507,1759576239341,-1680.0,0.00019843,2]
[389086509,1759576239350,-420.0,0.00019884,2]
[389086511,1759576239361,-420.0,0.00019884,2]
[389086513,1759576239370,-500.0,0.00019944,2]
[389086515,1759576239379,-409.29684884,0.00019944,2]
[389086517,1759576239388,-500.0,0.00019944,2]
[389086519,1759576239398,-500.0,0.00019944,2]
[389086521,1759576239407,-500.0,0.00019944,2]
[389086523,1759576239416,-500.0,0.00019944,2]
[389086525,1759576239426,-500.0,0.00019944,2]
[389086527,1759576239435,-500.0,0.00019944,2]
[389086529,1759576239444,-500.0,0.00019944,2]
[389086531,1759576239453,-500.0,0.00019944,2]
[389086533,1759576239462,-500.0,0.00019944,2]
[389086535,1759576239471,-4066.92253047,0.00020014,2]
[389086537,1759576239480,-534.68,0.00020037,2]
[389086539,1759576239490,-500.0,0.00020037,2]
[389086541,1759576239499,-1360.56,0.00020037,2]
[389086543,1759576239508,-1269.82,0.00020037,2]
[389086545,1759576239517,-746.58,0.00020037,2]
[389086547,1759576239526,-500.0,0.00020037,2]
[389086549,1759576239535,-500.0,0.00020037,2]
[389086550,1759576239544,-5566.94,0.00020037,2]
[389086552,1759576239554,-4367.38,0.00020037,2]
[389086554,1759576239563,-1574.36,0.00020037,2]
[389086556,1759576239573,-500.0,0.00020037,2]
[389086558,1759576239583,-590.18,0.00020037,2]
[389086560,1759576239593,-500.0,0.00020037,2]
[389086562,1759576239602,-500.0,0.00020037,2]
[389086564,1759576239611,-500.0,0.00020037,2]
[389086566,1759576239620,-500.0,0.00020114,2]
[389086568,1759576239629,-500.0,0.00020114,2]
[389086570,1759576239638,-584.18,0.00020114,2]
[389086572,1759576239648,-1838.1,0.00020114,2]
[389086574,1759576239660,-585.03,0.00020114,2]
[389086576,1759576239670,-955.37,0.00020114,2]
[389086578,1759576239680,-500.0,0.00020114,2]
[389086580,1759576239689,-500.0,0.00020114,2]
[389086582,1759576239698,-2288.71,0.00020114,2]
[389086584,1759576239707,-1781.48,0.00020114,2]
[389086586,1759576239717,-1130.4,0.00020114,2]
[389086588,1759576239726,-1467.11,0.00020114,2]
[389086590,1759576239735,-1260.12,0.00020114,2]
[389086592,1759576239744,-500.0,0.00020114,2]
[389086594,1759576239755,-545.08,0.00020114,2]
[389086621,1759576240003,-1436.03,0.00020114,2]
[389086623,1759576240013,-500.0,0.00020114,2]
[389086625,1759576240023,-500.0,0.00020114,2]
[389086627,1759576240032,-3224.55,0.00020114,2]
[389086629,1759576240041,-500.0,0.00020114,2]
[389086631,1759576240050,-646.0,0.00020114,2]
[389086633,1759576240059,-1025.35,0.00020114,2]
[389086635,1759576240068,-1766.34,0.00020114,2]
[389086637,1759576240078,-1473.85,0.00020114,2]
[389086639,1759576240087,-1767.5,0.00020114,2]
[389086641,1759576240096,-2991.97,0.00020114,2]
[389086643,1759576240105,-1063.98,0.00020114,2]
[389086645,1759576240114,-500.0,0.00020114,2]
[389086647,1759576240123,-500.0,0.00020114,2]
[389086649,1759576240132,-2963.17,0.00020114,2]
[389086651,1759576240142,-634.81,0.00020114,2]
[389086653,1759576240151,-500.0,0.00020114,2]
[389086655,1759576240159,-1001.13,0.00020114,2]
[389086657,1759576240169,-500.0,0.00020115,2]
[389086659,1759576240178,-1067.57004548,0.00020208,2]
[389086661,1759576240188,-1000.0,0.00020208,2]
[389086663,1759576240198,-1000.0,0.00020208,2]
[389086665,1759576240207,-504.92866586,0.00020208,2]
[389086667,1759576240216,-1000.0,0.00020208,2]
[389086669,1759576240225,-500.0,0.00020208,2]
[389086671,1759576240234,-4066.92253043,0.00020229,2]
[389086673,1759576240243,-250.0,0.00020272,2]
[389086675,1759576240252,-250.0,0.00020272,2]
[389086677,1759576240261,-250.0,0.00020272,2]
[389086678,1759576240269,-250.0,0.00020272,2]
[389086680,1759576240279,-166.0,0.00020272,2]
[389086682,1759576240288,-534.68,0.00020311,2]
[389086684,1759576240297,-500.0,0.00020311,2]
[389086686,1759576240306,-1360.56,0.00020311,2]
[389086688,1759576240315,-1269.82,0.00020311,2]
[389086690,1759576240325,-746.58,0.00020311,2]
[389086692,1759576240334,-500.0,0.00020311,2]
[389086694,1759576240343,-500.0,0.00020311,2]
[389086696,1759576240352,-5566.94,0.00020311,2]
[389086698,1759576240362,-4367.38,0.00020311,2]
[389086700,1759576240371,-1574.36,0.00020311,2]
[389086702,1759576240380,-500.0,0.00020311,2]
[389086704,1759576240389,-590.18,0.00020311,2]
[389086706,1759576240398,-500.0,0.00020311,2]
[389086708,1759576240407,-500.0,0.00020311,2]
[389086710,1759576240416,-500.0,0.00020311,2]
[389086712,1759576240426,-1001.05443199,0.00020357,2]
[389086714,1759576240435,-500.0,0.00020388,2]
[389086716,1759576240444,-500.0,0.00020388,2]
[389086718,1759576240453,-584.18,0.00020388,2]
[389086720,1759576240462,-1838.1,0.00020388,2]
[389086722,1759576240471,-585.03,0.00020388,2]
[389086724,1759576240480,-955.37,0.00020388,2]
[389086726,1759576240490,-500.0,0.00020388,2]
[389086728,1759576240499,-500.0,0.00020388,2]
[389086730,1759576240508,-2288.71,0.00020388,2]
[389086732,1759576240517,-1781.48,0.00020388,2]
[389086734,1759576240526,-1130.4,0.00020388,2]
[389086736,1759576240535,-1467.11,0.00020388,2]
[389086738,1759576240544,-1260.12,0.00020388,2]
[389086740,1759576240553,-500.0,0.00020388,2]
[389086742,1759576240561,-545.08,0.00020388,2]
[389086744,1759576240570,-1436.03,0.00020388,2]
[389086746,1759576240579,-500.0,0.00020388,2]
[389086747,1759576240588,-500.0,0.00020388,2]
[389086749,1759576240597,-3224.55,0.00020388,2]
[389086751,1759576240606,-500.0,0.00020388,2]
[389086753,1759576240615,-646.0,0.00020388,2]
[389086755,1759576240624,-1025.35,0.00020388,2]
[389086757,1759576240632,-1766.34,0.00020388,2]
[389086759,1759576240641,-1473.85,0.00020388,2]
[389086761,1759576240650,-1767.5,0.00020388,2]
[389086763,1759576240663,-2991.97,0.00020388,2]
[389086765,1759576240672,-500.0,0.00020388,2]
[389086767,1759576240682,-1063.98,0.00020388,2]
[389086769,1759576240691,-500.0,0.00020388,2]
[389086771,1759576240700,-2963.17,0.00020388,2]
[389086773,1759576240709,-634.81,0.00020388,2]
[389086775,1759576240719,-500.0,0.00020388,2]
[389086777,1759576240728,-1001.13,0.00020388,2]
[389086779,1759576240739,-500.0,0.00020389,2]
[389086781,1759576240748,-150.0,0.000204,2]
[389086783,1759576240757,-255.31,0.000204,2]
[389086785,1759576240766,-359.0,0.00020429,2]
[389086787,1759576240775,-4066.92253043,0.00020444,2]
[389086789,1759576240783,-1680.0,0.00020481,2]
[389086791,1759576240792,-1002.4107183,0.00020492,2]
[389086793,1759576240801,-502.59632812,0.00020492,2]